bitfinex/quotes_BTCUSD_20220205
["timestamp","ask_amount","ask_price","bid_price","bid_amount"]
[1644080913303,0.12807633,41158.0,41152.0,0.38123079]
[1644080913503,0.00069411,41155.0,41152.0,0.38123079]
[1644080913704,0.00069411,41155.0,41153.0,0.337837]
[1644080913903,0.00723044,41155.0,41153.0,0.337837]
[1644080914104,0.00723044,41155.0,41149.0,0.04346367]
[1644080914305,0.00723044,41155.0,41146.0,0.04346367]
[1644080914306,0.060767,41154.0,41146.0,0.04346367]
[1644080914506,0.060774,41152.0,41147.0,0.337837]
[1644080915105,0.00653633,41149.0,41147.0,0.6967327]
[1644080915305,0.00653633,41149.0,41147.0,0.96546118]
[1644080915506,0.060774,41152.0,41147.0,0.96546118]
[1644080915749,0.00653633,41149.0,41147.0,0.337837]
[1644080916250,0.00069416,41150.0,41148.0,0.04346367]
[1644080916550,0.00069416,41150.0,41149.0,0.337837]
[1644080916752,0.060774,41152.0,41149.0,0.91330019]
[1644080916950,0.06106585,41152.0,41149.0,0.91330019]
[1644080917149,0.06106585,41152.0,41149.0,0.95676386]
[1644080917553,0.06106585,41152.0,41149.0,0.68566119]
[1644080917950,0.06106585,41152.0,41149.0,0.64219752]
[1644080917951,0.060774,41152.0,41149.0,0.64219752]
[1644080918151,0.060774,41152.0,41144.0,0.04346367]
[1644080918351,0.060774,41152.0,41148.0,0.04346367]
[1644080919153,0.060774,41152.0,41151.0,0.337837]
[1644080919406,0.06146867,41152.0,41151.0,0.337837]
[1644080919599,0.06146867,41152.0,41149.0,0.04346367]
[1644080920204,0.05646867,41152.0,41149.0,0.04346367]
[1644080920403,0.055774,41152.0,41150.0,0.30595859]
[1644080920602,0.055774,41152.0,41151.0,0.337837]
[1644080920802,0.00069466,41153.0,41151.0,0.337837]
[1644080921504,0.060767,41154.0,41150.0,0.30595859]
[1644080921901,0.06146165,41154.0,41150.0,0.30595859]
[1644080922102,0.00653633,41152.0,41150.0,0.30595859]
[1644080922403,0.060771,41151.0,41144.0,0.04346367]
[1644080922601,0.060771,41151.0,41145.0,0.337837]
[1644080923003,0.00069469,41150.0,41145.0,0.337837]
[1644080923245,0.00069469,41150.0,41145.0,0.7053503]
[1644080923645,0.00069469,41150.0,41146.0,0.337837]
[1644080924146,0.060771,41151.0,41146.0,0.337837]
[1644080924347,0.00069468,41150.0,41146.0,0.337837]
[1644080924546,0.00653633,41149.0,41140.0,1.49826713]
[1644080924750,0.00653633,41141.0,41140.0,0.07924346]
[1644080924947,0.00653633,41141.0,41137.0,0.01846761]
[1644080925146,0.14413134,41142.0,41137.0,0.01846761]
[1644080925147,0.00153633,41140.0,41137.0,0.01846761]
[1644080925746,0.121603,41139.0,41137.0,0.01846761]
[1644080926653,0.121603,41139.0,41136.0,0.00065221]
[1644080926911,0.00153633,41137.0,41136.0,0.00065221]
[1644080927101,0.32252091,41137.0,41136.0,0.00065221]
[1644080927402,0.060821,41129.0,41127.0,0.0011]
[1644080927701,0.06235733,41128.0,41127.0,0.0011]
[1644080928505,0.08964461,41127.0,41125.0,0.0031]
[1644080929006,0.060829,41125.0,41118.0,0.0022]
[1644080929208,0.40739299,41125.0,41118.0,0.0022]
[1644080929406,0.00153633,41124.0,41118.0,0.0022]
[1644080929604,0.060827,41123.0,41118.0,0.0022]
[1644080930106,0.36383069,41123.0,41118.0,0.0022]
[1644080930306,0.160827,41123.0,41118.0,0.0022]
[1644080930754,0.55,41122.0,41118.0,0.0022]
[1644080930952,0.00153633,41120.0,41118.0,0.0022]
[1644080931154,0.3,41119.0,41112.0,0.0011]
[1644080931353,0.00153633,41115.0,41112.0,0.0011]
[1644080931753,0.00153633,41115.0,41111.0,0.0183]
[1644080931955,0.00153633,41112.0,41111.0,0.0183]
[1644080932155,0.20319614,41112.0,41111.0,0.0183]
[1644080932754,0.00153633,41112.0,41111.0,0.0183]
[1644080932954,0.00153633,41112.0,41111.0,0.0133]
[1644080934600,0.00153633,41112.0,41104.0,0.0022]
[1644080934601,0.7,41110.0,41104.0,0.0022]
[1644080934802,0.7,41110.0,41098.0,0.0011]
[1644080934803,0.00153633,41105.0,41098.0,0.0011]
[1644080935002,0.00153633,41099.0,41098.0,0.0011]
[1644080935197,0.04243633,41099.0,41092.0,0.0011]
[1644080935398,0.00153633,41094.0,41092.0,0.0011]
[1644080936196,0.00153633,41094.0,41093.0,0.0031]
[1644080936597,0.08460985,41092.0,41091.0,0.09469347]
[1644080936799,0.00153633,41094.0,41091.0,0.09469347]
[1644080937298,0.00153633,41094.0,41091.0,0.094]
[1644080937502,0.060876,41093.0,41091.0,0.094]
[1644080937902,0.060876,41093.0,41090.0,0.00069348]
[1644080938150,0.060876,41093.0,41082.0,0.24404122]
[1644080938353,0.060875,41089.0,41085.0,0.00013664]
[1644080938551,0.22946183,41091.0,41082.0,0.00213664]
[1644080938552,0.00153633,41086.0,41082.0,0.00213664]
[1644080938754,0.78182081,41086.0,41076.0,0.00013664]
[1644080938956,0.00153633,41082.0,41074.0,0.00013664]
[1644080939153,0.00153633,41082.0,41072.0,0.00013664]
[1644080939352,0.08968019,41077.0,41072.0,0.00013664]
[1644080939550,0.78903081,41086.0,41071.0,0.21631674]
[1644080939551,0.121796,41076.0,41071.0,0.21631674]
[1644080939854,0.121796,41076.0,41071.0,0.26478041]
[1644080940049,0.121796,41076.0,41071.0,0.56491705]
[1644080940254,0.00153633,41075.0,41071.0,0.26491705]
[1644080940451,0.00153633,41073.0,41071.0,0.26478041]
[1644080940650,0.00153633,41073.0,41071.0,0.21645338]
[1644080940865,0.29140233,41081.0,41072.0,1.087837]
[1644080940866,0.0808197,41081.0,41072.0,1.087837]
[1644080941057,0.538,41099.0,41080.0,0.04846367]
[1644080941254,0.41353769,41109.0,41092.0,0.04846367]
[1644080941255,0.5,41098.0,41092.0,0.04846367]
[1644080941454,0.05,41102.0,41087.0,0.04846367]
[1644080941652,0.05,41102.0,41088.0,0.337837]
[1644080941920,0.35812065,41102.0,41094.0,0.04846367]
[1644080942313,0.00069076,41097.0,41094.0,0.0459001]
[1644080942515,0.00069076,41097.0,41082.0,0.06168155]
[1644080942516,0.0040999,41095.0,41088.0,0.0459001]
[1644080942714,0.00069076,41097.0,41085.0,0.0459001]
[1644080942914,0.33293427,41091.0,41090.0,0.27774813]
[1644080943117,0.00069076,41097.0,41086.0,0.3]
[1644080943319,0.23259,41110.0,41091.0,0.0459001]
[1644080943320,0.0040999,41103.0,41091.0,0.0459001]
[1644080943525,0.060855,41101.0,41092.0,0.3]
[1644080943822,0.0040999,41103.0,41091.0,0.0459001]
[1644080944016,0.0040999,41103.0,41092.0,0.3]
[1644080944220,0.23259,41110.0,41101.0,0.0459001]
[1644080944221,0.33303482,41106.0,41101.0,0.0459001]
[1644080944618,0.0040999,41102.0,41088.0,0.3]
[1644080944822,0.0040999,41093.0,41083.0,0.0459001]
[1644080945022,0.0040999,41093.0,41089.0,0.02187957]
[1644080945422,0.0649749,41093.0,41089.0,0.02187957]
[1644080945652,0.28815131,41090.0,41089.0,0.02187957]
[1644080945852,0.28815131,41090.0,41089.0,0.01687957]
[1644080946057,0.34902631,41090.0,41089.0,0.01687957]
[1644080946253,0.35312621,41090.0,41089.0,0.01687957]
[1644080946455,0.56191053,41090.0,41089.0,0.01687957]
[1644080946653,0.66191053,41090.0,41089.0,0.01687957]
[1644080946853,0.74367165,41090.0,41083.0,0.00013664]
[1644080947053,0.75645132,41090.0,41082.0,0.00068874]
[1644080947252,0.6746902,41090.0,41082.0,0.00082538]
[1644080947457,0.6746902,41090.0,41076.0,0.06786169]
[1644080947458,0.25,41082.0,41076.0,0.02196159]
[1644080947654,0.09231321,41082.0,41077.0,0.00013665]
[1644080947852,0.09231321,41082.0,41076.0,0.02196159]
[1644080948053,0.08821331,41082.0,41076.0,0.02196159]
[1644080948454,0.08821331,41082.0,41072.0,0.00013665]
[1644080948455,0.0040999,41077.0,41072.0,0.00013665]
[1644080948659,0.0040999,41077.0,41071.0,0.02]
[1644080948660,0.06752708,41072.0,41071.0,0.02]
[1644080948854,0.06752708,41072.0,41071.0,0.015]
[1644080949055,0.4,41071.0,41069.0,0.00233665]
[1644080949256,0.30132819,41071.0,41069.0,0.0022]
[1644080949508,0.0140999,41070.0,41068.0,0.00037255]
[1644080949710,0.0140999,41070.0,41066.0,0.00013665]
[1644080949906,0.121828,41066.0,41063.0,0.00013665]
[1644080950705,0.121828,41066.0,41062.0,0.00013665]
[1644080950909,0.121828,41066.0,41062.0,0.0459001]
[1644080951108,0.121828,41066.0,41061.0,0.00025303]
[1644080951312,0.1259249,41067.0,41061.0,0.04615313]
[1644080951313,0.121825,41067.0,41061.0,0.04615313]
[1644080951507,0.121825,41067.0,41061.0,0.00025303]
[1644080951906,0.121825,41067.0,41061.0,0.24373115]
[1644080952107,0.20894181,41067.0,41061.0,0.24373115]
[1644080952321,0.121825,41067.0,41061.0,0.24373115]
[1644080953148,0.121825,41067.0,41062.0,0.00039199]
[1644080953348,0.08051192,41065.0,41062.0,0.00052864]
[1644080953549,0.0040999,41063.0,41062.0,0.00039199]
[1644080953749,0.0040999,41063.0,41060.0,0.0011]
[1644080953750,0.460928,41062.0,41060.0,0.0011]
[1644080953954,0.06093,41061.0,41060.0,0.0011]
[1644080954150,0.36304076,41056.0,41051.0,0.0101039]
[1644080954350,0.121858,41056.0,41051.0,0.0101039]
[1644080954550,0.121858,41056.0,41055.0,0.0459001]
[1644080954748,0.121858,41056.0,41051.0,0.056004]
[1644080954948,0.121858,41056.0,41055.0,0.0459001]
[1644080955150,0.14150255,41057.0,41056.0,0.84371599]
[1644080955452,0.18276,41066.0,41058.0,0.337837]
[1644080955651,0.18276,41066.0,41057.0,0.75]
[1644080955652,0.060902,41068.0,41065.0,0.0459001]
[1644080956049,0.05,41073.0,41066.0,0.4]
[1644080956050,0.13807926,41073.0,41066.0,0.4]
[1644080956252,0.0050999,41067.0,41065.0,0.0001367]
[1644080956457,0.0050999,41067.0,41056.0,0.06554565]
[1644080956458,0.06881971,41062.0,41059.0,0.0001367]
[1644080956651,0.06881971,41062.0,41057.0,0.0001367]
[1644080956906,0.06881971,41062.0,41056.0,0.01964555]
[1644080957101,0.060924,41058.0,41038.0,0.16446312]
[1644080957302,0.060924,41058.0,41051.0,0.35922849]
[1644080957501,0.01964555,41057.0,41042.0,0.10194405]
[1644080957802,0.01964555,41057.0,41041.0,0.00340891]
[1644080958002,0.01964555,41057.0,41052.0,0.00068556]
[1644080959005,0.001,41053.0,41052.0,0.22128734]
[1644080959201,0.00115555,41057.0,41053.0,0.75]
[1644080959402,0.00115555,41057.0,41052.0,0.2219729]
[1644080959601,0.00115555,41057.0,41052.0,0.2204629]
[1644080959802,0.01115555,41057.0,41052.0,0.2204629]
[1644080960002,0.05,41053.0,41052.0,0.00068556]
[1644080960204,0.05,41053.0,41041.0,0.00340891]
[1644080960205,0.51163209,41053.0,41041.0,0.00340891]
[1644080960503,0.05,41052.0,41041.0,0.00340891]
[1644080960753,0.44214209,41053.0,41041.0,0.00340891]
[1644080960954,0.19733875,41051.0,41044.0,0.20378835]
[1644080961155,0.48358109,41053.0,41044.0,0.20378835]
[1644080961352,0.47965109,41053.0,41044.0,0.19378835]
[1644080961753,0.41872209,41053.0,41041.0,0.00340891]
[1644080961957,0.110937,41047.0,41041.0,0.00340891]
[1644080962154,0.110937,41047.0,41044.0,0.39917338]
[1644080962155,0.060937,41047.0,41044.0,0.39917338]
[1644080962355,0.060937,41047.0,41030.0,0.06949768]
[1644080962356,0.5,41045.0,41030.0,0.06949768]
[1644080962559,0.4,41047.0,41030.0,0.05949768]
[1644080962754,0.4,41047.0,41043.0,0.00068257]
[1644080963156,0.060939,41045.0,41043.0,0.00068257]
[1644080963753,0.060939,41045.0,41031.0,0.30023424]
[1644080963754,0.05,41044.0,41031.0,0.27362024]
[1644080963955,0.060939,41046.0,41042.0,0.00068259]
[1644080964159,0.060949,41045.0,41042.0,0.00068259]
[1644080964410,0.05,41043.0,41042.0,0.00068259]
[1644080964705,0.060949,41045.0,41037.0,0.2490752]
[1644080964902,0.05,41043.0,41037.0,0.2490752]
[1644080965305,0.060949,41045.0,41037.0,0.2490752]
[1644080965508,0.01887483,41047.0,41038.0,0.337837]
[1644080965704,0.01887483,41047.0,41039.0,0.37147519]
[1644080965904,0.01887483,41047.0,41040.0,0.337837]
[1644080966104,0.01887483,41047.0,41041.0,0.09907342]
[1644080966303,0.01887483,41047.0,41042.0,0.337837]
[1644080966503,0.05,41053.0,41043.0,0.75]
[1644080966709,0.00079398,41062.0,41043.0,0.75]
[1644080966710,0.00079398,41062.0,41050.0,0.15]
[1644080966906,0.00079398,41062.0,41051.0,0.637837]
[1644080967105,0.00079398,41062.0,41053.0,0.03156]
[1644080967304,0.04579398,41071.0,41057.0,0.75]
[1644080967506,0.5014,41084.0,41068.0,0.29933207]
[1644080967707,0.02269232,41079.0,41076.0,0.31249982]
[1644080967906,0.02269232,41079.0,41070.0,0.00013667]
[1644080968156,0.02269232,41079.0,41059.0,0.00013667]
[1644080968355,0.02269232,41079.0,41058.0,0.65453667]
[1644080968557,0.02269232,41079.0,41062.0,0.05]
[1644080968757,2.51e-06,41071.0,41064.0,0.1005941]
[1644080968958,0.02269232,41079.0,41064.0,0.1005941]
[1644080968959,0.02269232,41079.0,41070.0,0.05]
[1644080969156,0.02269232,41079.0,41064.0,0.05]
[1644080969157,0.02269232,41079.0,41073.0,0.337837]
[1644080969363,0.02269232,41079.0,41073.0,0.68743041]
[1644080969760,0.02269232,41079.0,41078.0,0.25311589]
[1644080969957,0.02269232,41079.0,41073.0,0.34959341]
[1644080970156,0.02269232,41079.0,41074.0,0.337837]
[1644080970357,0.02269232,41079.0,41075.0,0.337837]
[1644080970758,0.02269232,41079.0,41077.0,0.337837]
[1644080971158,0.01269232,41079.0,41074.0,0.21550984]
[1644080971365,0.01269232,41079.0,41074.0,0.31050984]
[1644080971558,0.01269232,41079.0,41068.0,0.00013667]
[1644080971760,0.07672862,41076.0,41067.0,0.00013667]
[1644080972009,0.07672862,41076.0,41063.0,0.05013667]
[1644080972202,0.07672862,41076.0,41063.0,0.05]
[1644080972404,0.07672862,41076.0,41061.0,0.00013667]
[1644080972405,0.08851991,41069.0,41061.0,0.00013667]
[1644080972704,0.05,41071.0,41062.0,0.23822196]
[1644080972901,0.060908,41073.0,41062.0,0.23322196]
[1644080973102,0.060904,41068.0,41062.0,0.23322196]
[1644080973402,0.121807,41074.0,41062.0,0.23322196]
[1644080973601,0.006052,41072.0,41062.0,0.23322196]
[1644080973801,0.22317416,41073.0,41062.0,0.23322196]
[1644080974506,0.22287945,41073.0,41062.0,0.23322196]
[1644080974704,0.22287945,41073.0,41062.0,0.22822196]
[1644080974903,0.22317417,41073.0,41062.0,0.22822196]
[1644080975102,0.24288475,41073.0,41062.0,0.22822196]
[1644080975749,0.24259003,41073.0,41062.0,0.22822196]
[1644080975950,0.24327273,41073.0,41062.0,0.22822196]
[1644080976552,0.02039328,41073.0,41062.0,0.27822196]
[1644080976952,0.03845381,41073.0,41063.0,0.05]
[1644080977156,0.03845381,41073.0,41063.0,0.338614]
[1644080977157,0.01903825,41073.0,41063.0,0.338614]
[1644080977353,0.01903825,41073.0,41063.0,0.33875067]
[1644080977553,0.20880106,41072.0,41063.0,0.00013667]
[1644080977753,0.20880106,41072.0,41062.0,0.22822196]
[1644080977953,0.20880106,41072.0,41063.0,0.00013667]
[1644080978155,0.20775531,41072.0,41064.0,0.75]
[1644080978554,0.01903825,41073.0,41064.0,0.75013667]
[1644080979056,0.00029502,41073.0,41064.0,0.75013667]
[1644080979407,0.060894,41075.0,41065.0,0.338614]
[1644080979604,0.00269232,41075.0,41073.0,0.60298815]
[1644080979806,0.00269232,41075.0,41074.0,0.338614]
[1644080980002,0.00269232,41075.0,41066.0,0.4811993]
[1644080980203,0.01269232,41075.0,41066.0,0.4811993]
[1644080980403,0.01269232,41075.0,41069.0,0.338567]
[1644080980602,0.01269232,41075.0,41070.0,0.33987341]
[1644080980803,0.00068324,41073.0,41071.0,0.61503237]
[1644080981004,0.00068324,41073.0,41072.0,0.638567]
[1644080981204,0.00068324,41073.0,41072.0,0.338567]
[1644080981505,0.00068324,41073.0,41069.0,0.00013667]
[1644080981703,0.01269232,41075.0,41066.0,0.00013667]
[1644080982002,0.01269232,41075.0,41064.0,0.74]
[1644080982003,0.00029502,41073.0,41064.0,0.74]
[1644080982203,0.00029502,41073.0,41069.0,0.3896675]
[1644080982409,0.00029502,41073.0,41070.0,0.338567]
[1644080982604,0.00029502,41073.0,41067.0,0.338567]
[1644080982907,0.01269232,41075.0,41067.0,0.338567]
[1644080983154,0.00029501,41073.0,41067.0,0.33870367]
[1644080983554,0.12208501,41073.0,41068.0,0.31981033]
[1644080983753,0.12208501,41073.0,41069.0,0.338567]
[1644080983952,0.12208501,41073.0,41067.0,0.00013667]
[1644080984255,0.12179,41073.0,41066.0,0.20562753]
[1644080984553,0.12179,41073.0,41067.0,0.338567]
[1644080984554,0.060891,41072.0,41067.0,0.338567]
[1644080984853,0.060891,41072.0,41067.0,0.62620673]
[1644080985256,0.00029501,41073.0,41068.0,0.05]
[1644080985454,0.01269232,41075.0,41069.0,0.338567]
[1644080985756,0.01269232,41075.0,41070.0,0.338567]
[1644080985757,0.00068374,41073.0,41070.0,0.338567]
[1644080986454,0.00068374,41073.0,41071.0,0.338567]
[1644080986755,0.00068374,41074.0,41071.0,0.438567]
[1644080987000,0.00337606,41074.0,41073.0,0.338567]
[1644080987401,0.00337606,41074.0,41073.0,0.54907536]
[1644080987800,0.00269232,41074.0,41073.0,0.54907536]
[1644080988001,0.15811145,41089.0,41076.0,0.338567]
[1644080988211,0.182622,41097.0,41076.0,0.338567]
[1644080988212,0.05,41098.0,41078.0,0.75]
[1644080988404,0.05,41098.0,41081.0,0.09438888]
[1644080988599,0.05,41098.0,41083.0,0.43522477]
[1644080988799,0.05,41098.0,41092.0,0.6061117]
[1644080989001,0.02,41099.0,41092.0,0.6061117]
[1644080989199,0.02,41099.0,41093.0,0.388567]
[1644080989399,0.02,41099.0,41094.0,0.43677222]
[1644080989600,0.02,41099.0,41095.0,0.09185997]
[1644080989801,0.02,41099.0,41096.0,0.338567]
[1644080990106,0.05,41097.0,41080.0,0.5395]
[1644080990305,0.05,41088.0,41079.0,0.1696]
[1644080990500,0.121735,41095.0,41080.0,0.338567]
[1644080990759,0.05,41088.0,41076.0,0.09971243]
[1644080990959,0.05,41088.0,41083.0,0.60561865]
[1644080991358,0.3,41097.0,41084.0,0.338567]
[1644080991359,0.05,41095.0,41084.0,0.338567]
[1644080991560,0.00068361,41088.0,41084.0,0.338567]
[1644080991760,0.05,41088.0,41085.0,0.75]
[1644080992059,0.05,41088.0,41086.0,0.338567]
[1644080992260,0.05,41088.0,41083.0,0.24466712]
[1644080992459,0.04853652,41098.0,41083.0,0.24466712]
[1644080992659,0.04853652,41098.0,41084.0,1.02389253]
[1644080992865,0.04853652,41098.0,41090.0,0.01642966]
[1644080993261,0.04853652,41098.0,41090.0,0.40436115]
[1644080993467,0.10939852,41098.0,41097.0,0.23570537]
[1644080993663,0.015,41099.0,41097.0,0.23570537]
[1644080993860,0.015,41099.0,41098.0,0.338567]
[1644080994061,0.02,41109.0,41099.0,0.75]
[1644080994532,0.02,41109.0,41107.0,0.54849485]
[1644080995202,0.02,41109.0,41108.0,0.638567]
[1644080995407,0.015,41109.0,41108.0,0.338567]
[1644080995604,0.015,41109.0,41092.0,0.12167202]
[1644080995803,0.015,41109.0,41086.0,0.729]
[1644080996002,0.02174429,41109.0,41092.0,0.06083957]
[1644080996201,0.015,41109.0,41092.0,0.05]
[1644080996401,0.015,41109.0,41093.0,0.3]
[1644080996602,0.00068348,41102.0,41100.0,0.25846436]
[1644080996801,0.00068348,41102.0,41089.0,0.05]
[1644080997000,0.00068348,41102.0,41092.0,0.02166766]
[1644080997401,0.015,41109.0,41092.0,0.02166766]
[1644080997801,0.26701056,41106.0,41092.0,0.02166766]
[1644080998005,0.060851,41104.0,41092.0,0.02166766]
[1644080998256,0.001,41093.0,41092.0,0.02166766]
[1644080998856,0.038059,41093.0,41092.0,0.02166766]
[1644080999257,0.038059,41093.0,41083.0,0.29860842]
[1644080999456,0.001,41093.0,41083.0,0.29860842]
[1644080999857,0.001,41093.0,41084.0,0.338567]
[1644081000157,0.001,41093.0,41084.0,0.438567]
[1644081000457,0.001,41093.0,41083.0,0.34860842]
[1644081000663,0.001,41093.0,41080.0,0.02228118]
[1644081000856,0.001,41093.0,41083.0,0.05]
[1644081001057,0.001,41093.0,41090.0,0.27374265]
[1644081001264,0.00068265,41090.0,41083.0,0.05]
[1644081001457,0.00068265,41090.0,41084.0,0.338567]
[1644081001758,0.00068265,41090.0,41080.0,0.0701988]
[1644081002007,0.00068265,41090.0,41080.0,0.0201988]
[1644081002204,0.001,41093.0,41084.0,0.25982428]
[1644081002403,0.00068264,41090.0,41084.0,0.25982428]
[1644081002602,0.30258041,41099.0,41085.0,0.75]
[1644081003004,0.01,41086.0,41085.0,0.75]
[1644081003206,0.01,41086.0,41085.0,1.088567]
[1644081003406,0.01,41086.0,41085.0,0.75]
[1644081003607,0.01,41086.0,41085.0,1.35605846]
[1644081003803,0.01,41086.0,41085.0,1.36265948]
[1644081004204,0.01,41086.0,41085.0,1.46265948]
[1644081004504,0.121725,41099.0,41086.0,0.75]
[1644081004703,0.060858,41097.0,41086.0,0.749]
[1644081005104,0.060858,41097.0,41086.0,0.849]
[1644081005505,0.060858,41097.0,41092.0,0.25253226]
[1644081006149,0.060858,41097.0,41093.0,0.65935691]
[1644081006150,0.0006826,41097.0,41093.0,0.65935691]
[1644081006352,0.0006826,41097.0,41096.0,0.049]
[1644081006648,0.0006826,41097.0,41096.0,0.372467]
[1644081006848,0.0006826,41097.0,41096.0,0.472467]
[1644081007049,0.0161,41103.0,41096.0,0.472467]
[1644081007248,0.0161,41103.0,41098.0,0.0339]
[1644081007448,0.0161,41103.0,41099.0,0.338567]
[1644081007648,0.0161,41103.0,41090.0,0.0339]
[1644081007851,0.0161,41091.0,41088.0,0.3]
[1644081008052,0.21205916,41108.0,41087.0,0.21681227]
[1644081008248,0.21205916,41108.0,41088.0,0.3]
[1644081008455,0.0161,41092.0,41091.0,0.1989961]
[1644081008848,0.0161,41092.0,41088.0,0.28981707]
[1644081009049,0.08071182,41097.0,41087.0,0.10143695]
[1644081009050,0.0161,41089.0,41087.0,0.10143695]
[1644081009248,0.0161,41089.0,41087.0,0.01852468]
[1644081009501,0.0161,41098.0,41087.0,0.01852468]
[1644081009700,0.12172,41099.0,41093.0,0.24836141]
[1644081009902,0.0161,41098.0,41093.0,0.24836141]
[1644081010100,0.0161,41094.0,41087.0,0.01852468]
[1644081010301,0.0161,41090.0,41087.0,0.01852468]
[1644081010699,0.05,41103.0,41087.0,0.01852468]
[1644081010901,0.00068571,41092.0,41087.0,0.01852468]
[1644081011107,0.00068571,41092.0,41088.0,0.338567]
[1644081011301,0.06086,41096.0,41094.0,0.00321429]
[1644081011801,0.037059,41095.0,41094.0,0.00321429]
[1644081012202,0.037059,41095.0,41094.0,0.27625285]
[1644081012400,0.121719,41100.0,41094.0,0.27625285]
[1644081012603,0.037059,41099.0,41094.0,0.27625285]
[1644081012802,0.08159572,41101.0,41094.0,0.27625285]
[1644081013001,0.1475109,41101.0,41094.0,0.00321429]
[1644081013255,0.37875767,41100.0,41094.0,0.00321429]
[1644081013555,0.43961967,41100.0,41094.0,0.00321429]
[1644081013760,0.060857,41099.0,41094.0,0.00321429]
[1644081013954,0.097921,41100.0,41094.0,0.00321429]
[1644081013955,0.037059,41098.0,41094.0,0.00321429]
[1644081014153,0.037059,41101.0,41094.0,0.00321429]
[1644081014353,0.38602901,41105.0,41094.0,0.00321429]
[1644081014553,0.037059,41104.0,41094.0,0.00321429]
[1644081014753,0.39693067,41104.0,41094.0,0.00321429]
[1644081014953,0.39693067,41104.0,41096.0,0.24002446]
[1644081015154,0.037059,41102.0,41096.0,0.24002446]
[1644081015754,0.00068511,41101.0,41096.0,0.24002446]
[1644081015957,0.00068511,41101.0,41099.0,0.05]
[1644081016157,0.00068511,41101.0,41100.0,0.27110031]
[1644081016359,0.00068511,41101.0,41099.0,0.05]
[1644081016658,0.02110655,41107.0,41099.0,0.40130374]
[1644081016906,0.0006851,41102.0,41099.0,0.40130374]
[1644081017111,0.0006851,41102.0,41099.0,0.45130374]
[1644081017299,0.0006851,41102.0,41100.0,0.338567]
[1644081017502,0.0006851,41102.0,41100.0,0.60874614]
[1644081017699,0.0006851,41102.0,41100.0,0.70831305]
[1644081017899,0.015,41109.0,41101.0,0.60588242]
[1644081017900,0.24958759,41109.0,41101.0,0.60588242]
[1644081018099,0.00068509,41103.0,41101.0,0.26731542]
[1644081018298,0.00068509,41103.0,41100.0,0.66494341]
[1644081018502,0.00068509,41103.0,41102.0,0.388567]
[1644081018704,5.09e-06,41103.0,41102.0,0.73327754]
[1644081018906,5.09e-06,41103.0,41102.0,0.97417754]
[1644081019102,0.015,41109.0,41102.0,0.97417754]
[1644081019306,0.015,41109.0,41108.0,0.74369543]
[1644081019503,0.02,41119.0,41110.0,0.338567]
[1644081019703,0.02,41119.0,41113.0,0.388567]
[1644081020202,0.02,41119.0,41113.0,0.438567]
[1644081020402,0.02,41119.0,41113.0,0.71182574]
[1644081020652,0.00029248,41116.0,41113.0,0.71182574]
[1644081021052,0.00029248,41116.0,41113.0,0.66182574]
[1644081021458,0.02,41119.0,41115.0,0.338567]
[1644081021651,0.02,41119.0,41113.0,0.37325874]
[1644081021852,0.02,41119.0,41115.0,0.338567]
[1644081021853,0.00068496,41117.0,41115.0,0.338567]
[1644081022253,0.00068496,41117.0,41116.0,0.33460269]
[1644081022455,0.00068496,41117.0,41116.0,0.67316969]
[1644081022652,0.02,41119.0,41116.0,0.67316969]
[1644081022954,0.02068494,41119.0,41117.0,0.338567]
[1644081023458,0.02068494,41119.0,41118.0,0.338567]
[1644081023853,0.02,41119.0,41118.0,0.438567]
[1644081024254,0.02,41119.0,41118.0,0.488567]
[1644081024508,0.02,41119.0,41118.0,0.438567]
[1644081024908,0.02,41119.0,41118.0,0.488567]
[1644081025308,0.02,41119.0,41118.0,0.438567]
[1644081025706,0.02,41119.0,41118.0,0.337917]
[1644081026109,0.02,41119.0,41113.0,0.22325874]
[1644081026307,0.02,41119.0,41113.0,0.32325874]
[1644081026510,0.02,41119.0,41114.0,0.338226]
[1644081026713,0.00055967,41118.0,41114.0,0.338226]
[1644081026911,0.00055967,41118.0,41115.0,0.26669916]
[1644081027110,0.00055967,41118.0,41116.0,0.388226]
[1644081027311,0.00055967,41118.0,41117.0,0.37789148]
[1644081027512,0.00055967,41118.0,41117.0,0.3507991]
[1644081027710,0.02,41119.0,41117.0,0.4007991]
[1644081027911,0.02,41119.0,41118.0,0.388226]
[1644081028346,0.02,41119.0,41118.0,0.438226]
[1644081028550,0.02115507,41124.0,41119.0,0.75]
[1644081028750,0.02115507,41124.0,41120.0,0.338226]
[1644081028948,0.02115507,41124.0,41121.0,0.53763051]
[1644081029147,0.02144704,41124.0,41118.0,0.32486876]
[1644081029353,0.05,41128.0,41124.0,0.31979091]
[1644081029549,0.060812,41128.0,41124.0,0.31979091]
[1644081029749,0.060812,41128.0,41124.0,0.36979091]
[1644081029950,0.060812,41128.0,41118.0,0.05]
[1644081030151,0.060812,41128.0,41114.0,0.31155161]
[1644081030353,0.22993592,41125.0,41117.0,0.23241466]
[1644081030551,0.060821,41123.0,41117.0,0.23241466]
[1644081030949,0.060821,41123.0,41117.0,0.33838245]
[1644081031750,0.060821,41123.0,41109.0,0.5561]
[1644081032027,0.121642,41124.0,41105.0,0.00066031]
[1644081032028,0.060835,41112.0,41105.0,0.00066031]
[1644081032222,0.037762,41111.0,41105.0,0.00066031]
[1644081032422,0.037762,41111.0,41102.0,0.05]
[1644081032618,0.060835,41112.0,41105.0,0.33645137]
[1644081032818,0.060835,41112.0,41105.0,0.38645137]
[1644081033119,0.060835,41112.0,41107.0,0.05]
[1644081033319,0.060835,41112.0,41105.0,0.33645137]
[1644081034320,0.060835,41112.0,41100.0,0.5]
[1644081034525,0.060835,41112.0,41105.0,0.2693861]
[1644081034724,0.060835,41112.0,41100.0,0.5]
[1644081034922,0.060837,41111.0,41100.0,0.5]
[1644081035221,0.42447166,41108.0,41100.0,0.5]
[1644081035424,0.06263638,41108.0,41100.0,0.5]
[1644081035652,0.06263638,41108.0,41102.0,0.27640609]
[1644081035853,0.121687,41107.0,41102.0,0.27640609]
[1644081036053,0.12348238,41107.0,41102.0,0.27640609]
[1644081036253,0.12348238,41107.0,41103.0,0.00039764]
[1644081037065,0.3954717,41105.0,41103.0,0.00039764]